[Event "Championnat d'Europe Rapide"]
[Date "2024.12.08"]
[White "Grigoriants, Sergey"]
[Black "Kalezic, Blazo"]
[WhiteElo "2542"]
[BlackElo "2382"]
[Round "10.16"]
[Result "1-0"]
[TimeControl "900+10"]

1. e4 {[%emt 00:00:57] [%clk 00:14:22]} e6 {[%emt 00:00:02] [%clk 00:15:18]} 2.
d4 {[%emt 00:00:06] [%clk 00:14:27]} d5 {[%emt 00:00:02] [%clk 00:15:26]} 3. Nc3
{[%emt 00:00:07] [%clk 00:14:31]} Nf6 {[%emt 00:00:02] [%clk 00:15:33]} 4. e5
{[%emt 00:00:03] [%clk 00:14:38]} Nfd7 {[%emt 00:00:01] [%clk 00:15:42]} 5. f4
{[%emt 00:00:03] [%clk 00:14:44]} c5 {[%emt 00:00:03] [%clk 00:15:49]} 6. Nf3
{[%emt 00:00:05] [%clk 00:14:49]} Nc6 {[%emt 00:00:03] [%clk 00:15:56]} 7. Be3
{[%emt 00:00:04] [%clk 00:14:56]} cxd4 {[%emt 00:00:30] [%clk 00:15:37]} 8. Nxd4
{[%emt 00:00:04] [%clk 00:15:01]} Bc5 {[%emt 00:00:08] [%clk 00:15:38]} 9. Qd2
{[%emt 00:00:11] [%clk 00:15:01]} a6 {[%emt 00:00:36]} 10. O-O-O {[%emt
00:00:01] [%clk 00:14:47]} Nxd4 {[%emt 00:00:08] [%clk 00:15:37]} 11. Bxd4
{[%emt 00:00:04] [%clk 00:14:54]} O-O {[%emt 00:00:04] [%clk 00:15:42]} 12. Qe3
{[%emt 00:00:25] [%clk 00:14:39]} Bxd4 {[%emt 00:00:30] [%clk 00:15:22]} 13.
Qxd4 {[%emt 00:00:28] [%clk 00:14:22]} b5 {[%emt 00:00:16] [%clk 00:15:15]} 14.
Bd3 {[%emt 00:00:33] [%clk 00:13:59]} Qb6 {[%emt 00:00:19] [%clk 00:15:06]} 15.
Ne2 {[%emt 00:00:22] [%clk 00:13:48]} Nc5 {[%emt 00:01:44] [%clk 00:13:32]} 16.
Kb1 {[%emt 00:01:32] [%clk 00:12:26]} b4 {[%emt 00:00:33] [%clk 00:13:10]} 17.
g4 {[%emt 00:00:33] [%clk 00:12:02]} Rb8 {[%emt 00:05:49] [%clk 00:07:30]} 18.
f5 {[%emt 00:00:52] [%clk 00:11:21]} Ne4 {[%emt 00:00:08] [%clk 00:07:32]} 19.
Rhf1 {[%emt 00:00:57] [%clk 00:10:34]} exf5 {[%emt 00:01:05] [%clk 00:06:37]}
20. gxf5 {[%emt 00:00:07] [%clk 00:10:37]} Qxd4 {[%emt 00:00:28] [%clk
00:06:19]} 21. Nxd4 {[%emt 00:00:02] [%clk 00:10:45]} Re8 {[%emt 00:00:19] [%clk
00:06:10]} 22. Rf4 {[%emt 00:05:18] [%clk 00:05:37]} Bb7 {[%emt 00:01:01] [%clk
00:05:19]} 23. e6 {[%emt 00:00:17] [%clk 00:05:30]} f6 {[%emt 00:00:57] [%clk
00:04:32]} 24. Nb3 {[%emt 00:00:40] [%clk 00:05:02]} g5 {[%emt 00:01:41] [%clk
00:03:00]} 25. fxg6 {[%emt 00:00:32] [%clk 00:04:40]} Rxe6 {[%emt 00:00:04]
[%clk 00:03:06]} 26. gxh7+ {[%emt 00:00:13] [%clk 00:04:37]} Kh8 {[%emt
00:00:49] [%clk 00:02:27]} 27. Rg1 {[%emt 00:01:06] [%clk 00:03:41]} Re7 {[%emt
00:00:42] [%clk 00:01:55]} 28. h4 {[%emt 00:01:26] [%clk 00:02:25]} Rg7 {[%emt
00:01:09] [%clk 00:00:55]} 29. Rxg7 {[%emt 00:00:21] [%clk 00:02:14]} Kxg7
{[%emt 00:00:02] [%clk 00:01:04]} 30. Kc1 {[%emt 00:00:09] [%clk 00:02:15]} Re8
{[%emt 00:00:51] [%clk 00:00:23]} 31. Nd2 {[%emt 00:01:18] [%clk 00:01:07]} Re5
{[%emt 00:00:15] [%clk 00:00:18]} 32. Kd1 {[%emt 00:00:52] [%clk 00:00:26]} Kxh7
{[%emt 00:00:13] [%clk 00:00:15]} 33. Rxf6 {[%emt 00:00:07] [%clk 00:00:29]} Kg7
{[%emt 00:00:03] [%clk 00:00:23]} 34. Rf4 {[%emt 00:00:09] [%clk 00:00:29]} a5
{[%emt 00:00:06] [%clk 00:00:27]} 35. Nf3 {[%emt 00:00:11] [%clk 00:00:28]} Re8
{[%emt 00:00:20] [%clk 00:00:16]} 36. Nd4 {[%emt 00:00:11] [%clk 00:00:28]} a4
{[%emt 00:00:13] [%clk 00:00:14]} 37. a3 {[%emt 00:00:20] [%clk 00:00:18]} bxa3
{[%emt 00:00:06] [%clk 00:00:18]} 38. bxa3 {[%clk 00:00:27]} Rc8 {[%emt
00:00:10] [%clk 00:00:19]} 39. Kc1 {[%emt 00:00:08] [%clk 00:00:28]} Kg8 {[%emt
00:00:09] [%clk 00:00:20]} 40. Nf5 {[%emt 00:00:12] [%clk 00:00:26]} Ra8 {[%emt
00:00:08] [%clk 00:00:23]} 41. Ne7+ {[%emt 00:00:15] [%clk 00:00:21]} Kg7 {[%emt
00:00:04] [%clk 00:00:28]} 42. Nxd5 {[%emt 00:00:03] [%clk 00:00:28]} Nc5 {[%emt
00:00:06] [%clk 00:00:31]} 43. Bc4 {[%emt 00:00:19] [%clk 00:00:20]} Bxd5 {[%emt
00:00:07] [%clk 00:00:34]} 44. Bxd5 {[%emt 00:00:01] [%clk 00:00:29]} Rd8 {[%emt
00:00:04] [%clk 00:00:40]} 45. Bc6 {[%emt 00:00:08] [%clk 00:00:30]} Rc8 {[%emt
00:00:05] [%clk 00:00:46]} 46. Rg4+ {[%emt 00:00:08] [%clk 00:00:31]} Kf6 {[%emt
00:00:03] [%clk 00:00:54]} 47. Bb5 {[%emt 00:00:18] [%clk 00:00:24]} Rb8 {[%emt
00:00:06] [%clk 00:00:57]} 48. Rb4 {[%emt 00:00:02] [%clk 00:00:32]} Ke5 {[%emt
00:00:13] [%clk 00:00:55]} 49. Kb2 {[%emt 00:00:01] [%clk 00:00:40]} Kd6 {[%emt
00:00:09] [%clk 00:00:56]} 50. h5 {[%emt 00:00:08] [%clk 00:00:41]} Rh8 {[%emt
00:00:06] [%clk 00:01:01]} 51. Be2 {[%emt 00:00:04] [%clk 00:00:47]} Re8 {[%emt
00:00:07] [%clk 00:01:04]} 52. Bg4 {[%emt 00:00:12] [%clk 00:00:44]} Re1 {[%emt
00:00:07] [%clk 00:01:07]} 53. Bf5 {[%emt 00:00:17] [%clk 00:00:38]} Rh1 {[%emt
00:00:20] [%clk 00:00:57]} 54. Bg6 {[%emt 00:00:02] [%clk 00:00:46]} Rh3 {[%emt
00:00:05] [%clk 00:01:02]} 55. Rf4 {[%emt 00:00:13] [%clk 00:00:43]} Kc7 {[%emt
00:00:51] [%clk 00:00:22]} 56. Rf8 {[%emt 00:00:09] [%clk 00:00:43]} Kb6 {[%emt
00:00:18] [%clk 00:00:14]} 57. Rb8+ {[%emt 00:00:09] [%clk 00:00:44]} Ka7 {[%emt
00:00:05] [%clk 00:00:19]} 58. Rh8 {[%emt 00:00:05] [%clk 00:00:49]} Nb7 {[%emt
00:00:13] [%clk 00:00:17]} 59. h6 {[%emt 00:00:20] [%clk 00:00:39]} Nd6 {[%emt
00:00:01] [%clk 00:00:25]} 60. Bd3 {[%emt 00:00:02] [%clk 00:00:47]} Nb7 {[%emt
00:00:08] [%clk 00:00:27]} 61. h7 {[%emt 00:00:07] [%clk 00:00:50]} Nc5 {[%emt
00:00:01] [%clk 00:00:36]} 62. Bf5 {[%emt 00:00:01] [%clk 00:00:58]} Rh5 {[%emt
00:00:02] [%clk 00:00:44]} 63. Rf8 {[%emt 00:00:03] [%clk 00:01:05]} 1-0

[Site "Europe Echecs"]

[Event "Championnat d'Europe Rapide"]
[Date "2024.12.08"]
[White "Samunenkov, Ihor"]
[Black "Grigorov, Grigor"]
[WhiteElo "2543"]
[BlackElo "2497"]
[Round "10.17"]
[Result "1/2-1/2"]
[TimeControl "900+10"]

1. e4 {[%emt 00:00:03] [%clk 00:15:17]} c6 {[%emt 00:00:04] [%clk 00:15:18]} 2.
d4 {[%emt 00:00:02] [%clk 00:15:24]} d5 {[%emt 00:00:02] [%clk 00:15:26]} 3. e5
{[%emt 00:00:03] [%clk 00:15:31]} Bf5 {[%emt 00:00:05] [%clk 00:15:31]} 4. h4
{[%emt 00:00:03] [%clk 00:15:38]} a6 {[%emt 00:00:03] [%clk 00:15:37]} 5. Nc3
{[%emt 00:02:37] [%clk 00:13:12]} h5 {[%emt 00:00:07] [%clk 00:15:39]} 6. Bd3
{[%emt 00:01:21] [%clk 00:12:02]} Bxd3 {[%emt 00:00:24] [%clk 00:15:26]} 7. Qxd3
{[%emt 00:00:03] [%clk 00:12:08]} e6 {[%emt 00:00:06] [%clk 00:15:29]} 8. Nf3
{[%emt 00:00:49] [%clk 00:11:30]} c5 {[%emt 00:00:09] [%clk 00:15:29]} 9. Bg5
{[%emt 00:00:26] [%clk 00:11:14]} Qc7 {[%emt 00:01:11] [%clk 00:14:29]} 10. O-O
{[%emt 00:01:47] [%clk 00:09:37]} Nc6 {[%emt 00:00:20] [%clk 00:14:19]} 11. Ne2
{[%emt 00:00:43] [%clk 00:09:03]} cxd4 {[%emt 00:00:19] [%clk 00:14:11]} 12.
Nexd4 {[%emt 00:00:09] [%clk 00:09:04]} Nxd4 {[%emt 00:01:08] [%clk 00:13:12]}
13. Nxd4 {[%emt 00:00:04] [%clk 00:09:11]} Be7 {[%emt 00:00:33] [%clk 00:12:49]}
14. Qg3 {[%emt 00:02:07] [%clk 00:07:13]} Bxg5 {[%emt 00:02:14] [%clk 00:10:46]}
15. Qxg5 {[%emt 00:00:06] [%clk 00:07:17]} g6 {[%emt 00:00:06] [%clk 00:10:49]}
16. Rfe1 {[%emt 00:02:50] [%clk 00:04:38]} Qe7 {[%emt 00:01:52] [%clk 00:09:06]}
17. Qf4 {[%emt 00:00:24] [%clk 00:04:25]} Nh6 {[%emt 00:00:42] [%clk 00:08:34]}
18. a4 {[%emt 00:00:17] [%clk 00:04:18]} Rc8 {[%emt 00:00:20] [%clk 00:08:23]}
19. Rad1 {[%emt 00:01:05] [%clk 00:03:23]} Nf5 {[%emt 00:01:25] [%clk 00:07:09]}
20. Nxf5 {[%emt 00:00:33] [%clk 00:03:00]} gxf5 {[%emt 00:00:03] [%clk
00:07:16]} 21. c3 {[%emt 00:00:03] [%clk 00:03:08]} Rg8 {[%emt 00:00:05] [%clk
00:07:21]} 22. f3 {[%emt 00:00:06] [%clk 00:03:11]} Rc4 {[%emt 00:00:03] [%clk
00:07:28]} 23. Rd4 {[%emt 00:00:02] [%clk 00:03:19]} Qc5 {[%emt 00:00:24] [%clk
00:07:14]} 24. Qe3 {[%emt 00:02:13] [%clk 00:01:16]} Qc7 {[%emt 00:00:42] [%clk
00:06:41]} 25. Rc1 {[%emt 00:00:24] [%clk 00:01:03]} Qb6 {[%emt 00:00:30] [%clk
00:06:20]} 26. Qf2 {[%emt 00:00:18] [%clk 00:00:56]} Qb3 {[%emt 00:00:49] [%clk
00:05:41]} 27. Qc2 {[%emt 00:00:24] [%clk 00:00:42]} Qb6 {[%emt 00:00:20] [%clk
00:05:31]} 28. Qf2 {[%emt 00:00:12] [%clk 00:00:40]} Qb3 {[%emt 00:00:02] [%clk
00:05:39]} 29. Qc2 {[%emt 00:00:17] [%clk 00:00:33]} 1/2-1/2

[Site "Europe Echecs"]

[Event "Championnat d'Europe Rapide"]
[Date "2024.12.08"]
[White "Saric, Ante"]
[Black "Dobrikov, Marco"]
[WhiteElo "2482"]
[BlackElo "2407"]
[Round "10.18"]
[Result "1-0"]
[TimeControl "900+10"]

1. Nf3 {[%clk 00:15:19]} Nf6 {[%emt 00:00:02] [%clk 00:15:19]} 2. c4 {[%clk
00:15:28]} c6 {[%emt 00:00:01] [%clk 00:15:28]} 3. Nc3 {[%emt 00:00:16] [%clk
00:15:22]} d5 {[%emt 00:00:01] [%clk 00:15:37]} 4. e3 {[%clk 00:15:31]} e6
{[%emt 00:00:25] [%clk 00:15:22]} 5. d4 {[%clk 00:15:40]} Nbd7 {[%emt 00:00:02]
[%clk 00:15:30]} 6. Bd3 {[%clk 00:15:49]} Bd6 {[%emt 00:00:01] [%clk 00:15:39]}
7. e4 {[%emt 00:00:02] [%clk 00:15:57]} dxc4 {[%emt 00:00:37] [%clk 00:15:12]}
8. Bxc4 {[%emt 00:00:01] [%clk 00:16:06]} b5 {[%emt 00:00:27] [%clk 00:14:55]}
9. Bxe6 {[%emt 00:01:06] [%clk 00:15:09]} fxe6 {[%emt 00:00:03] [%clk 00:15:02]}
10. e5 {[%clk 00:15:19]} Be7 {[%emt 00:00:34] [%clk 00:14:38]} 11. exf6 {[%emt
00:00:02] [%clk 00:15:27]} gxf6 {[%emt 00:00:24] [%clk 00:14:23]} 12. O-O {[%emt
00:00:33] [%clk 00:15:05]} O-O {[%emt 00:00:07] [%clk 00:14:26]} 13. Qe2 {[%emt
00:00:59] [%clk 00:14:16]} Nb6 {[%emt 00:00:03] [%clk 00:14:32]} 14. Bh6 {[%emt
00:00:18] [%clk 00:14:08]} Rf7 {[%emt 00:00:02] [%clk 00:14:40]} 15. Rad1 {[%emt
00:00:19] [%clk 00:14:01]} Nd5 {[%emt 00:00:19] [%clk 00:14:30]} 16. Nxd5 {[%emt
00:00:28] [%clk 00:13:43]} Qxd5 {[%emt 00:00:03] [%clk 00:14:37]} 17. b3 {[%emt
00:00:33] [%clk 00:13:20]} Bd7 {[%emt 00:01:03] [%clk 00:13:43]} 18. Ne5 {[%emt
00:00:39] [%clk 00:12:51]} fxe5 {[%emt 00:03:56] [%clk 00:09:57]} 19. dxe5
{[%emt 00:00:03] [%clk 00:12:59]} Qc5 {[%emt 00:00:27] [%clk 00:09:40]} 20. Rxd7
{[%emt 00:00:03] [%clk 00:13:04]} Kh8 {[%clk 00:09:50]} 21. Be3 {[%emt 00:01:03]
[%clk 00:12:13]} Qa3 {[%emt 00:00:18] [%clk 00:09:42]} 22. Qh5 {[%emt 00:00:43]
[%clk 00:11:39]} Rg7 {[%emt 00:01:46] [%clk 00:08:07]} 23. Qh3 {[%emt 00:02:45]
[%clk 00:09:04]} Rg6 {[%emt 00:00:37] [%clk 00:07:40]} 24. Qf3 {[%emt 00:00:14]
[%clk 00:08:59]} Rag8 {[%emt 00:00:40] [%clk 00:07:11]} 25. g3 {[%emt 00:00:09]
[%clk 00:09:00]} Bc5 {[%emt 00:00:03] [%clk 00:07:18]} 26. Rfd1 {[%emt 00:04:51]
[%clk 00:04:19]} Bxe3 {[%emt 00:00:09] [%clk 00:07:19]} 27. Qxe3 {[%clk
00:04:27]} a5 {[%emt 00:00:31] [%clk 00:06:58]} 28. Rc7 {[%emt 00:00:42] [%clk
00:03:53]} Qxa2 {[%emt 00:00:07] [%clk 00:07:04]} 29. Rdd7 {[%emt 00:00:55]
[%clk 00:03:08]} R6g7 {[%emt 00:00:02] [%clk 00:07:11]} 30. Rxg7 {[%emt
00:00:25] [%clk 00:02:54]} Rxg7 {[%emt 00:00:02] [%clk 00:07:19]} 31. Rc8+
{[%emt 00:00:10] [%clk 00:02:55]} Rg8 {[%emt 00:00:01] [%clk 00:07:27]} 32.
Rxg8+ {[%emt 00:00:01] [%clk 00:03:03]} Kxg8 {[%clk 00:07:36]} 33. Qg5+ {[%clk
00:03:12]} Kf8 {[%emt 00:00:09] [%clk 00:07:38]} 34. Qf6+ {[%emt 00:00:01] [%clk
00:03:20]} Kg8 {[%emt 00:00:04] [%clk 00:07:45]} 35. Qxe6+ {[%emt 00:00:01]
[%clk 00:03:29]} Kf8 {[%emt 00:00:11] [%clk 00:07:44]} 36. Qf6+ {[%emt 00:00:07]
[%clk 00:03:31]} Kg8 {[%emt 00:00:09] [%clk 00:07:45]} 37. e6 {[%emt 00:02:01]
[%clk 00:01:41]} Qb1+ {[%emt 00:00:02] [%clk 00:07:53]} 38. Kg2 {[%clk
00:01:50]} Qe4+ {[%emt 00:00:01] [%clk 00:08:01]} 39. f3 {[%emt 00:00:34] [%clk
00:01:26]} Qc2+ {[%emt 00:00:25] [%clk 00:07:46]} 40. Kh3 {[%emt 00:00:05] [%clk
00:01:31]} Qg6 {[%clk 00:07:55]} 41. Qd8+ {[%emt 00:00:04] [%clk 00:01:37]} Kg7
{[%emt 00:00:01] [%clk 00:08:04]} 42. Qd7+ {[%emt 00:00:24] [%clk 00:01:23]} Kf6
{[%emt 00:00:38] [%clk 00:07:37]} 43. e7 {[%emt 00:00:09] [%clk 00:01:24]} Qh6+
{[%emt 00:01:02] [%clk 00:06:45]} 44. Kg2 {[%emt 00:00:03] [%clk 00:01:30]} Qd2+
{[%emt 00:00:03] [%clk 00:06:52]} 45. Qxd2 {[%emt 00:00:02] [%clk 00:01:38]} 1-0

[Site "Europe Echecs"]

[Event "Championnat d'Europe Rapide"]
[Date "2024.12.08"]
[White "Subelj, Jan"]
[Black "Gavrilescu, David"]
[WhiteElo "2526"]
[BlackElo "2549"]
[Round "10.19"]
[Result "1/2-1/2"]
[TimeControl "900+10"]

1. Nf3 {[%emt 00:00:03] [%clk 00:15:16]} d5 {[%emt 00:00:41] [%clk 00:14:40]} 2.
g3 {[%emt 00:00:11] [%clk 00:15:15]} Nf6 {[%emt 00:00:03] [%clk 00:14:47]} 3.
Bg2 {[%emt 00:00:02] [%clk 00:15:22]} e6 {[%emt 00:00:09] [%clk 00:14:49]} 4.
O-O {[%emt 00:00:05] [%clk 00:15:26]} Be7 {[%emt 00:00:10] [%clk 00:14:50]} 5.
c4 {[%emt 00:00:07] [%clk 00:15:29]} O-O {[%emt 00:00:03] [%clk 00:14:56]} 6. d4
{[%emt 00:00:09] [%clk 00:15:31]} a5 {[%emt 00:00:15] [%clk 00:14:51]} 7. Qc2
{[%emt 00:00:07] [%clk 00:15:33]} Nc6 {[%emt 00:00:37] [%clk 00:14:25]} 8. Bd2
{[%emt 00:00:16] [%clk 00:15:27]} a4 {[%emt 00:01:24] [%clk 00:13:11]} 9. Rd1
{[%emt 00:00:08] [%clk 00:15:28]} Bd7 {[%emt 00:00:55] [%clk 00:12:28]} 10. Be1
{[%emt 00:00:20] [%clk 00:15:17]} dxc4 {[%emt 00:04:11] [%clk 00:08:27]} 11.
Qxc4 {[%emt 00:00:27] [%clk 00:15:00]} Na5 {[%emt 00:00:03] [%clk 00:08:34]} 12.
Qd3 {[%emt 00:01:16] [%clk 00:13:54]} Bc6 {[%emt 00:01:45] [%clk 00:07:00]} 13.
Nc3 {[%emt 00:00:03] [%clk 00:14:01]} a3 {[%emt 00:00:53] [%clk 00:06:17]} 14.
b3 {[%emt 00:00:24] [%clk 00:13:46]} b6 {[%emt 00:00:02] [%clk 00:06:25]} 15.
Rac1 {[%emt 00:01:33] [%clk 00:12:22]} Bb7 {[%emt 00:00:11] [%clk 00:06:24]} 16.
Ne5 {[%emt 00:00:35] [%clk 00:11:57]} Bxg2 {[%emt 00:01:02] [%clk 00:05:32]} 17.
Kxg2 {[%emt 00:00:02] [%clk 00:12:05]} Nd7 {[%emt 00:00:27] [%clk 00:05:15]} 18.
Qb5 {[%emt 00:02:24] [%clk 00:09:52]} Nxe5 {[%emt 00:00:30] [%clk 00:04:55]} 19.
dxe5 {[%emt 00:00:01] [%clk 00:10:00]} Qb8 {[%emt 00:01:05] [%clk 00:04:01]} 20.
Rd7 {[%emt 00:00:28] [%clk 00:09:42]} c6 {[%emt 00:00:02] [%clk 00:04:09]} 21.
Qa4 {[%emt 00:00:45] [%clk 00:09:06]} Re8 {[%emt 00:00:46] [%clk 00:03:32]} 22.
Qe4 {[%emt 00:00:22] [%clk 00:08:55]} b5 {[%emt 00:01:05] [%clk 00:02:38]} 23.
Qf4 {[%emt 00:01:31] [%clk 00:07:33]} Ra7 {[%emt 00:01:54] [%clk 00:00:55]} 24.
Rxa7 {[%emt 00:00:30] [%clk 00:07:12]} Qxa7 {[%emt 00:00:01] [%clk 00:01:04]}
25. Ne4 {[%emt 00:00:01] [%clk 00:07:20]} c5 {[%emt 00:00:13] [%clk 00:01:01]}
26. Bxa5 {[%emt 00:00:49] [%clk 00:06:42]} Qxa5 {[%emt 00:00:02] [%clk
00:01:09]} 27. Nxc5 {[%emt 00:00:02] [%clk 00:06:49]} h6 {[%emt 00:00:22] [%clk
00:00:57]} 28. h4 {[%emt 00:00:42] [%clk 00:06:17]} Qa7 {[%emt 00:00:35] [%clk
00:00:33]} 29. Nd3 {[%emt 00:00:13] [%clk 00:06:14]} Rd8 {[%emt 00:00:03] [%clk
00:00:40]} 30. Qe4 {[%emt 00:00:11] [%clk 00:06:12]} Qb8 {[%emt 00:00:40] [%clk
00:00:12]} 31. Qc6 {[%emt 00:00:18] [%clk 00:06:04]} Bf8 {[%emt 00:00:04] [%clk
00:00:17]} 32. Rc2 {[%emt 00:00:26] [%clk 00:05:48]} h5 {[%emt 00:00:02] [%clk
00:00:26]} 33. Qc7 {[%emt 00:00:15] [%clk 00:05:42]} Qa8+ {[%emt 00:00:01] [%clk
00:00:35]} 34. f3 {[%emt 00:00:01] [%clk 00:05:51]} g6 {[%emt 00:00:14] [%clk
00:00:31]} 35. Qb6 {[%emt 00:00:16] [%clk 00:05:45]} Rb8 {[%emt 00:00:09] [%clk
00:00:32]} 36. Qc6 {[%emt 00:00:04] [%clk 00:05:51]} Qa7 {[%emt 00:00:05] [%clk
00:00:37]} 37. Qc7 {[%clk 00:05:59]} Rb7 {[%emt 00:00:04] [%clk 00:00:43]} 38.
Qd8 {[%emt 00:00:08] [%clk 00:06:01]} Rb8 {[%emt 00:00:04] [%clk 00:00:50]} 39.
Qc7 {[%emt 00:02:15] [%clk 00:03:55]} Rb7 {[%emt 00:00:02] [%clk 00:00:59]} 40.
Qc6 {[%emt 00:00:01] [%clk 00:04:04]} Rb8 {[%emt 00:00:03] [%clk 00:01:05]} 41.
b4 {[%emt 00:00:13] [%clk 00:04:01]} Qd4 {[%emt 00:00:16] [%clk 00:00:59]} 42.
Qc3 {[%emt 00:00:09] [%clk 00:04:03]} Qa7 {[%emt 00:00:14] [%clk 00:00:54]} 43.
Qc7 {[%emt 00:00:08] [%clk 00:04:05]} Rb7 {[%emt 00:00:05] [%clk 00:00:59]} 44.
Qd8 {[%emt 00:00:02] [%clk 00:04:13]} Rd7 {[%emt 00:00:28] [%clk 00:00:40]} 45.
Qe8 {[%emt 00:00:02] [%clk 00:04:21]} Rc7 {[%emt 00:00:14] [%clk 00:00:36]} 46.
Rxc7 {[%emt 00:00:22] [%clk 00:04:09]} Qxc7 {[%emt 00:00:01] [%clk 00:00:46]}
47. Nc5 {[%clk 00:04:18]} Kg7 {[%emt 00:00:05] [%clk 00:00:51]} 48. Nd7 {[%emt
00:00:02] [%clk 00:04:27]} Bxb4 {[%emt 00:00:04] [%clk 00:00:57]} 49. Nf6 {[%emt
00:00:11] [%clk 00:04:25]} Bf8 {[%emt 00:00:10] [%clk 00:00:58]} 50. Nd7 {[%emt
00:02:10] [%clk 00:02:24]} Bb4 {[%emt 00:00:02] [%clk 00:01:06]} 51. Nf6 {[%emt
00:00:30] [%clk 00:02:05]} Bf8 {[%emt 00:00:01] [%clk 00:01:14]} 1/2-1/2

[Site "Europe Echecs"]

[Event "Championnat d'Europe Rapide"]
[Date "2024.12.08"]
[White "Santos Latasa, Jaime"]
[Black "Schneider, Ilja"]
[WhiteElo "2628"]
[BlackElo "2414"]
[Round "10.20"]
[Result "1-0"]
[TimeControl "900+10"]

1. d4 {[%emt 00:00:03] [%clk 00:15:17]} Nf6 {[%emt 00:00:02] [%clk 00:15:17]} 2.
c4 {[%emt 00:00:04] [%clk 00:15:23]} e6 {[%emt 00:00:02] [%clk 00:15:26]} 3. Nc3
{[%emt 00:00:05] [%clk 00:15:28]} Bb4 {[%emt 00:00:02] [%clk 00:15:34]} 4. e3
{[%emt 00:00:01] [%clk 00:15:36]} O-O {[%emt 00:00:03] [%clk 00:15:42]} 5. Bd3
{[%emt 00:00:06] [%clk 00:15:40]} d5 {[%emt 00:00:03] [%clk 00:15:49]} 6. a3
{[%emt 00:00:10] [%clk 00:15:40]} Bxc3+ {[%emt 00:00:05] [%clk 00:15:54]} 7.
bxc3 {[%emt 00:00:01] [%clk 00:15:49]} dxc4 {[%emt 00:00:03] [%clk 00:16:01]} 8.
Bxc4 {[%emt 00:00:01] [%clk 00:15:57]} c5 {[%emt 00:00:02] [%clk 00:16:10]} 9.
Nf3 {[%emt 00:00:20] [%clk 00:15:47]} Qc7 {[%emt 00:00:02] [%clk 00:16:18]} 10.
Ba2 {[%emt 00:00:02] [%clk 00:15:55]} b6 {[%emt 00:02:51] [%clk 00:13:37]} 11.
O-O {[%emt 00:00:03] [%clk 00:16:02]} Nc6 {[%emt 00:00:46] [%clk 00:13:01]} 12.
Re1 {[%emt 00:00:16] [%clk 00:15:55]} Rd8 {[%emt 00:00:59] [%clk 00:12:13]} 13.
e4 {[%emt 00:00:41] [%clk 00:15:24]} e5 {[%emt 00:02:09] [%clk 00:10:14]} 14. d5
{[%emt 00:01:17] [%clk 00:14:17]} Ne7 {[%emt 00:00:26] [%clk 00:09:58]} 15. h3
{[%emt 00:01:01] [%clk 00:13:26]} Ne8 {[%emt 00:00:25] [%clk 00:09:43]} 16. c4
{[%emt 00:00:14] [%clk 00:13:21]} Ng6 {[%emt 00:00:06] [%clk 00:09:47]} 17. Bb1
{[%emt 00:00:08] [%clk 00:13:24]} Nd6 {[%emt 00:00:02] [%clk 00:09:55]} 18. Bd3
{[%emt 00:00:02] [%clk 00:13:32]} Ba6 {[%emt 00:01:45] [%clk 00:08:20]} 19. Qe2
{[%emt 00:00:19] [%clk 00:13:22]} Rf8 {[%emt 00:01:32] [%clk 00:06:59]} 20. a4
{[%emt 00:00:04] [%clk 00:13:29]} Bc8 {[%emt 00:00:28] [%clk 00:06:41]} 21. Qc2
{[%emt 00:00:58] [%clk 00:12:40]} Bd7 {[%emt 00:00:08] [%clk 00:06:43]} 22. Bb2
{[%emt 00:00:18] [%clk 00:12:32]} f6 {[%emt 00:00:35] [%clk 00:06:17]} 23. a5
{[%emt 00:00:13] [%clk 00:12:29]} Rfb8 {[%emt 00:00:57] [%clk 00:05:31]} 24. Bf1
{[%emt 00:01:43] [%clk 00:10:55]} bxa5 {[%emt 00:00:18] [%clk 00:05:24]} 25. Nd2
{[%emt 00:00:21] [%clk 00:10:44]} a4 {[%emt 00:00:47] [%clk 00:04:47]} 26. Bc3
{[%emt 00:00:01] [%clk 00:10:53]} a5 {[%emt 00:00:08] [%clk 00:04:50]} 27. Ra3
{[%emt 00:00:24] [%clk 00:10:38]} Rb4 {[%emt 00:00:14] [%clk 00:04:45]} 28. g3
{[%emt 00:00:28] [%clk 00:10:21]} Ne7 {[%emt 00:00:49] [%clk 00:04:06]} 29. h4
{[%emt 00:00:31] [%clk 00:10:00]} Nec8 {[%emt 00:00:18] [%clk 00:03:58]} 30. Be2
{[%emt 00:00:20] [%clk 00:09:49]} Nb6 {[%emt 00:00:07] [%clk 00:04:02]} 31. Ba1
{[%emt 00:00:03] [%clk 00:09:56]} Bc8 {[%emt 00:00:13] [%clk 00:03:58]} 32. f4
{[%emt 00:00:08] [%clk 00:09:58]} Nf7 {[%emt 00:00:21] [%clk 00:03:47]} 33. Rf1
{[%emt 00:00:04] [%clk 00:10:04]} Ba6 {[%emt 00:00:12] [%clk 00:03:46]} 34. Kg2
{[%emt 00:00:05] [%clk 00:10:08]} Re8 {[%emt 00:00:26] [%clk 00:03:31]} 35. Rf2
{[%emt 00:00:35] [%clk 00:09:43]} Qe7 {[%emt 00:00:29] [%clk 00:03:12]} 36. Raf3
{[%emt 00:01:04] [%clk 00:08:49]} Nd7 {[%emt 00:00:39] [%clk 00:02:43]} 37. Bc3
{[%emt 00:00:33] [%clk 00:08:26]} Nb6 {[%emt 00:00:19] [%clk 00:02:35]} 38. Re3
{[%emt 00:00:14] [%clk 00:08:22]} Qc7 {[%emt 00:01:28] [%clk 00:01:17]} 39. Bh5
{[%emt 00:00:32] [%clk 00:07:59]} Nxc4 {[%emt 00:00:28] [%clk 00:00:59]} 40.
Nxc4 {[%emt 00:00:05] [%clk 00:08:04]} Rxc4 {[%emt 00:00:08] [%clk 00:01:02]}
41. fxe5 {[%emt 00:00:23] [%clk 00:07:51]} Rxe5 {[%emt 00:00:10] [%clk
00:01:01]} 42. Bxe5 {[%emt 00:01:42] [%clk 00:06:19]} Nxe5 {[%emt 00:00:10]
[%clk 00:01:02]} 43. Qa2 {[%emt 00:00:12] [%clk 00:06:17]} Kf8 {[%emt 00:00:48]
[%clk 00:00:24]} 44. Be2 {[%emt 00:00:06] [%clk 00:06:21]} Qb8 {[%emt 00:00:17]
[%clk 00:00:17]} 45. Bxc4 {[%emt 00:00:09] [%clk 00:06:21]} Nxc4 {[%emt
00:00:07] [%clk 00:00:21]} 46. Re1 {[%emt 00:00:04] [%clk 00:06:26]} Ne5 {[%emt
00:00:05] [%clk 00:00:27]} 47. Qxa4 {[%emt 00:00:10] [%clk 00:06:26]} Nd3 {[%emt
00:00:02] [%clk 00:00:34]} 48. Qxa5 {[%emt 00:00:03] [%clk 00:06:33]} Bc8 {[%emt
00:00:27] [%clk 00:00:18]} 49. Rd1 {[%emt 00:00:10] [%clk 00:06:31]} Bh3+ {[%emt
00:00:06] [%clk 00:00:23]} 50. Kh2 {[%emt 00:00:01] [%clk 00:06:40]} 1-0

[Site "Europe Echecs"]